fUSD/lending_fUSD_20250507
["ID","MTS","AMOUNT","RATE_DAILY","PERIOD"]
[360153014,1746578993476,202.17,0.00019381,2]
[360153018,1746579032047,-207.4,0.00019506,2]
[360153019,1746579032062,-250.0,0.00019507,2]
[360153020,1746579032072,-200.0,0.00019508,2]
[360153021,1746579032081,-150.0,0.0001951,2]
[360153022,1746579032091,-200.0,0.00019512,2]
[360153023,1746579032101,-3411.90423339,0.00019515,2]
[360153024,1746579032111,-1200.0,0.00019515,2]
[360153025,1746579032120,-300.0,0.00019515,2]
[360153026,1746579032130,-4368.16904214,0.00019516,2]
[360153027,1746579032142,-2142.85093432,0.00019516,2]
[360153028,1746579032151,-151.0,0.00019517,2]
[360153029,1746579032161,-150.0,0.00019523,2]
[360153030,1746579032170,-150.0,0.00019524,2]
[360153031,1746579032338,-3411.90423339,0.00019532,2]
[360153032,1746579032348,-6511.01997646,0.00019533,2]
[360153033,1746579032358,-3411.90423339,0.0001955,2]
[360153034,1746579032367,-6511.01997646,0.00019551,2]
[360153035,1746579032377,-1046.61376171,0.00019559,2]
[360153036,1746579032386,-679.50822257,0.00019567,2]
[360153037,1746579032398,-2732.39601082,0.00019567,2]
[360153038,1746579032407,-146.68339321,0.00019568,2]
[360153040,1746579032424,-510.674481,0.00019568,2]
[360153042,1746579032436,-5853.66210225,0.00019568,2]
[360153044,1746579032446,-151.0,0.00019569,2]
[360153046,1746579032455,-155.0,0.00019569,2]
[360153048,1746579032465,-151.0,0.00019569,2]
[360153050,1746579032474,-151.0,0.00019569,2]
[360153051,1746579032483,-668.65185757,0.00019569,2]
[360153052,1746579032493,-151.0,0.00019569,2]
[360153053,1746579032503,-151.0,0.00019569,2]
[360153054,1746579032513,-1226.58,0.0001957,2]
[360153055,1746579032522,-1000.0,0.00019571,2]
[360153056,1746579032532,-850.0,0.00019578,2]
[360153057,1746579032541,-450.0,0.00019579,2]
[360153058,1746579032550,-450.0,0.00019579,2]
[360153059,1746579032559,-450.0,0.00019579,2]
[360153060,1746579032568,-450.0,0.00019579,2]
[360153061,1746579032577,-450.0,0.00019579,2]
[360153062,1746579032587,-640.74,0.00019579,2]
[360153063,1746579032596,-470.0,0.00019579,2]
[360153064,1746579032605,-450.0,0.00019579,2]
[360153065,1746579032615,-260.4423311,0.00019579,2]
[360153066,1746579032624,-450.0,0.00019579,2]
[360153067,1746579032633,-450.0,0.00019579,2]
[360153068,1746579032643,-450.0,0.00019579,2]
[360153069,1746579032652,-450.0,0.00019579,2]
[360153070,1746579032662,-609.25,0.00019579,2]
[360153071,1746579032672,-450.0,0.00019579,2]
[360153072,1746579032681,-1645.74,0.00019579,2]
[360153073,1746579032690,-450.67325056,0.00019579,2]
[360153074,1746579032699,-237.90259546,0.00019579,2]
[360153075,1746579032709,-470.0,0.00019579,2]
[360153076,1746579032719,-470.0,0.00019579,2]
[360153077,1746579032728,-450.0,0.00019579,2]
[360153078,1746579032737,-450.0,0.00019579,2]
[360153079,1746579032746,-450.0,0.00019579,2]
[360153080,1746579032755,-450.0,0.00019579,2]
[360153081,1746579032764,-450.0,0.00019579,2]
[360153082,1746579032773,-1213.4,0.00019579,2]
[360153083,1746579032782,-174.001285,0.00019579,2]
[360153084,1746579032791,-450.0,0.00019579,2]
[360153085,1746579032800,-500.0,0.00019579,2]
[360153086,1746579032809,-500.0,0.00019579,2]
[360153087,1746579032818,-500.0,0.00019579,2]
[360153088,1746579032827,-295.16855151,0.00019579,2]
[360153089,1746579032837,-500.0,0.00019579,2]
[360153090,1746579032846,-500.0,0.00019579,2]
[360153091,1746579032855,-500.0,0.00019579,2]
[360153092,1746579032865,-500.0,0.00019579,2]
[360153093,1746579032874,-500.0,0.00019579,2]
[360153094,1746579032883,-500.0,0.00019579,2]
[360153095,1746579032892,-500.0,0.00019579,2]
[360153096,1746579032901,-500.0,0.00019579,2]
[360153097,1746579032910,-500.0,0.00019579,2]
[360153098,1746579032919,-500.0,0.00019579,2]
[360153099,1746579032928,-500.0,0.00019579,2]
[360153100,1746579032938,-500.0,0.00019579,2]
[360153101,1746579032947,-500.0,0.00019579,2]
[360153102,1746579032956,-500.0,0.00019579,2]
[360153103,1746579032965,-500.0,0.00019579,2]
[360153104,1746579032976,-500.0,0.00019579,2]
[360153105,1746579032986,-500.0,0.00019579,2]
[360153106,1746579032997,-500.0,0.00019579,2]
[360153107,1746579033007,-500.0,0.00019579,2]
[360153108,1746579033016,-500.0,0.00019579,2]
[360153109,1746579033025,-500.0,0.00019579,2]
[360153110,1746579033035,-500.0,0.00019579,2]
[360153111,1746579033045,-500.0,0.00019579,2]
[360153112,1746579033055,-500.0,0.00019579,2]
[360153113,1746579033068,-500.0,0.00019579,2]
[360153114,1746579033077,-500.0,0.00019579,2]
[360153115,1746579033087,-500.0,0.00019579,2]
[360153116,1746579033096,-500.0,0.00019579,2]
[360153117,1746579033106,-500.0,0.00019579,2]
[360153118,1746579033115,-500.0,0.00019579,2]
[360153119,1746579033125,-500.0,0.00019579,2]
[360153120,1746579033135,-500.0,0.00019579,2]
[360153121,1746579033144,-500.0,0.00019579,2]
[360153122,1746579033154,-500.0,0.00019579,2]
[360153123,1746579033163,-500.0,0.00019579,2]
[360153124,1746579033173,-500.0,0.00019579,2]
[360153125,1746579033182,-500.0,0.00019579,2]
[360153126,1746579033192,-500.0,0.00019579,2]
[360153127,1746579033202,-500.0,0.00019579,2]
[360153128,1746579033211,-500.0,0.00019579,2]
[360153129,1746579033221,-500.0,0.00019579,2]
[360153130,1746579033231,-500.0,0.00019579,2]
[360153131,1746579033240,-500.0,0.00019579,2]
[360153132,1746579033249,-500.0,0.00019579,2]
[360153133,1746579033259,-500.0,0.00019579,2]
[360153134,1746579033269,-500.0,0.00019579,2]
[360153135,1746579033278,-500.0,0.00019579,2]
[360153136,1746579033288,-830.47568763,0.00019579,2]
[360153137,1746579033297,-830.47568763,0.00019579,2]
[360153138,1746579033307,-830.47568763,0.00019579,2]
[360153139,1746579033317,-830.47568763,0.00019579,2]
[360153140,1746579033327,-830.47568763,0.00019579,2]
[360153141,1746579033337,-830.47568763,0.00019579,2]
[360153142,1746579033346,-830.47568763,0.00019579,2]
[360153143,1746579033356,-830.47568763,0.00019579,2]
[360153144,1746579033366,-830.47568763,0.00019579,2]
[360153145,1746579033376,-830.47568763,0.00019579,2]
[360153146,1746579033386,-830.47568763,0.00019579,2]
[360153147,1746579033396,-830.47568763,0.00019579,2]
[360153148,1746579033406,-830.47568763,0.00019579,2]
[360153149,1746579033416,-830.47568763,0.00019579,2]
[360153150,1746579033426,-830.47568763,0.00019579,2]
[360153151,1746579033435,-830.47568763,0.00019579,2]
[360153152,1746579033445,-830.47568763,0.00019579,2]
[360153153,1746579033455,-830.47568763,0.00019579,2]
[360153154,1746579033465,-830.47568763,0.00019579,2]
[360153155,1746579033474,-830.47568763,0.00019579,2]
[360153156,1746579033483,-830.47568763,0.00019579,2]
[360153157,1746579033493,-830.47568763,0.00019579,2]
[360153158,1746579033502,-830.47568763,0.00019579,2]
[360153159,1746579033512,-830.47568763,0.00019579,2]
[360153160,1746579033522,-830.47568763,0.00019579,2]
[360153161,1746579033531,-830.47568763,0.00019579,2]
[360153162,1746579033540,-830.47568763,0.00019579,2]
[360153163,1746579033549,-830.47568763,0.00019579,2]
[360153164,1746579033559,-830.47568763,0.00019579,2]
[360153165,1746579033568,-830.47568763,0.00019579,2]
[360153166,1746579033578,-830.47568763,0.00019579,2]
[360153167,1746579033587,-830.47568763,0.00019579,2]
[360153168,1746579033596,-830.47568763,0.00019579,2]
[360153169,1746579033606,-830.47568763,0.00019579,2]
[360153170,1746579033615,-807.47789937,0.00019579,2]
[360153171,1746579033624,-807.47789937,0.00019579,2]
[360153172,1746579033633,-807.47789937,0.00019579,2]
[360153173,1746579033643,-807.47789937,0.00019579,2]
[360153174,1746579033652,-807.47789937,0.00019579,2]
[360153175,1746579033661,-807.47789937,0.00019579,2]
[360153176,1746579033670,-807.47789937,0.00019579,2]
[360153177,1746579033679,-807.47789937,0.00019579,2]
[360153178,1746579033689,-807.47789937,0.00019579,2]
[360153179,1746579033699,-807.47789937,0.00019579,2]
[360153180,1746579033709,-807.47789937,0.00019579,2]
[360153181,1746579033718,-807.47789937,0.00019579,2]
[360153182,1746579033728,-807.47789937,0.00019579,2]
[360153183,1746579033737,-456.23,0.0001958,2]
[360153184,1746579033747,-450.0,0.0001958,2]
[360153185,1746579033756,-450.0,0.0001958,2]
[360153186,1746579033766,-450.0,0.0001958,2]
[360153187,1746579033775,-450.0,0.0001958,2]
[360153188,1746579033784,-450.0,0.0001958,2]
[360153189,1746579033793,-450.0,0.0001958,2]
[360153190,1746579033802,-450.0,0.0001958,2]
[360153191,1746579033814,-450.0,0.0001958,2]
[360153192,1746579033826,-450.0,0.0001958,2]
[360153193,1746579033836,-450.0,0.0001958,2]
[360153194,1746579033846,-450.0,0.0001958,2]
[360153195,1746579033855,-450.0,0.0001958,2]
[360153196,1746579033864,-450.0,0.0001958,2]
[360153197,1746579033873,-450.0,0.0001958,2]
[360153198,1746579033883,-450.0,0.0001958,2]
[360153199,1746579033892,-450.0,0.0001958,2]
[360153200,1746579033902,-391.93404043,0.0001958,2]
[360153201,1746579033911,-450.0,0.0001958,2]
[360153202,1746579033920,-450.0,0.0001958,2]
[360153203,1746579033929,-450.0,0.0001958,2]
[360153204,1746579033938,-450.0,0.0001958,2]
[360153205,1746579033948,-450.0,0.0001958,2]
[360153206,1746579033957,-450.0,0.0001958,2]
[360153207,1746579033967,-450.0,0.0001958,2]
[360153208,1746579033976,-450.0,0.0001958,2]
[360153209,1746579033986,-450.0,0.0001958,2]
[360153210,1746579033995,-568.95,0.0001958,2]
[360153211,1746579034004,-450.0,0.0001958,2]
[360153212,1746579034014,-450.0,0.0001958,2]
[360153213,1746579034024,-450.0,0.0001958,2]
[360153214,1746579034033,-450.0,0.0001958,2]
[360153215,1746579034042,-450.0,0.0001958,2]
[360153216,1746579034052,-450.0,0.0001958,2]
[360153217,1746579034064,-579.0,0.0001958,2]
[360153218,1746579034073,-450.0,0.0001958,2]
[360153219,1746579034083,-450.0,0.0001958,2]
[360153220,1746579034092,-450.0,0.0001958,2]
[360153221,1746579034102,-450.0,0.0001958,2]
[360153222,1746579034111,-520.0,0.0001958,2]
[360153223,1746579034120,-450.0,0.0001958,2]
[360153224,1746579034129,-450.0,0.0001958,2]
[360153225,1746579034141,-450.0,0.0001958,2]
[360153226,1746579034150,-572.66,0.0001958,2]
[360153227,1746579034159,-450.0,0.0001958,2]
[360153228,1746579034169,-331.62818955,0.0001958,2]
[360153229,1746579034184,-118.37181045,0.0001958,2]
[360153230,1746579034194,-450.0,0.0001958,2]
[360153231,1746579034313,-508.78,0.0001958,2]
[360153232,1746579034322,-450.0,0.0001958,2]
[360153233,1746579034331,-450.0,0.0001958,2]
[360153234,1746579034341,-450.0,0.0001958,2]
[360153235,1746579034350,-76.68586955,0.0001958,2]
[360153236,1746579034366,-373.31413045,0.0001958,2]
[360153237,1746579034375,-450.0,0.0001958,2]
[360153238,1746579034386,-450.0,0.0001958,2]
[360153239,1746579034396,-450.0,0.0001958,2]
[360153240,1746579034405,-500.76,0.0001958,2]
[360153241,1746579034415,-535.82,0.0001958,2]
[360153242,1746579034424,-450.0,0.0001958,2]
[360153243,1746579034433,-450.0,0.0001958,2]
[360153244,1746579034445,-450.0,0.0001958,2]
[360153245,1746579034454,-450.0,0.0001958,2]
[360153246,1746579034463,-450.0,0.0001958,2]
[360153247,1746579034473,-450.0,0.0001958,2]
[360153248,1746579034482,-450.0,0.0001958,2]
[360153249,1746579034491,-450.0,0.0001958,2]
[360153250,1746579034500,-450.0,0.0001958,2]
[360153251,1746579034508,-450.0,0.0001958,2]
[360153252,1746579034517,-450.0,0.0001958,2]
[360153253,1746579034526,-523.11505242,0.0001958,2]
[360153254,1746579034535,-450.0,0.0001958,2]
[360153255,1746579034544,-450.0,0.0001958,2]
[360153256,1746579034554,-450.0,0.0001958,2]
[360153257,1746579034563,-450.0,0.0001958,2]
[360153258,1746579034572,-450.0,0.0001958,2]
[360153259,1746579034581,-450.0,0.0001958,2]
[360153260,1746579034590,-450.0,0.0001958,2]
[360153261,1746579034599,-490.0,0.0001958,2]
[360153262,1746579034608,-450.0,0.0001958,2]
[360153263,1746579034617,-366.16866799,0.0001958,2]
[360153264,1746579034630,-362.5,0.0001958,2]
[360153265,1746579034641,-307.30133201,0.0001958,2]
[360153266,1746579034651,-1070.3,0.0001958,2]
[360153267,1746579034660,-986.14,0.0001958,2]
[360153268,1746579034669,-450.0,0.0001958,2]
[360153269,1746579034678,-450.0,0.0001958,2]
[360153270,1746579034688,-9.08292606,0.0001958,2]
[360153271,1746579034713,-440.91707394,0.0001958,2]
[360153272,1746579034722,-420.27866541,0.0001958,2]
[360153273,1746579034733,-49.72133459,0.0001958,2]
[360153274,1746579034742,-450.0,0.0001958,2]
[360153275,1746579034751,-470.0,0.0001958,2]
[360153276,1746579034761,-538.83767395,0.0001958,2]
[360153277,1746579034770,-450.0,0.0001958,2]
[360153278,1746579034779,-450.0,0.0001958,2]
[360153279,1746579034788,-450.0,0.0001958,2]
[360153280,1746579034797,-256.01489777,0.0001958,2]
[360153281,1746579034806,-352.60015615,0.0001958,2]
[360153282,1746579034816,-444.72482314,0.0001958,2]
[360153283,1746579034825,-450.0,0.0001958,2]
[360153284,1746579034834,-450.0,0.0001958,2]
[360153285,1746579034843,-378.31275343,0.0001958,2]
[360153292,1746579038091,-450.0,0.00019579,2]
[360153293,1746579038102,-450.0,0.00019579,2]
[360153294,1746579038111,-91.68724657,0.0001958,2]
[360153295,1746579038121,-450.0,0.0001958,2]
[360153296,1746579038134,-450.0,0.0001958,2]
[360153297,1746579038144,-142.85263343,0.0001958,2]
[360153298,1746579038156,-307.14736657,0.0001958,2]
[360153299,1746579038166,-450.0,0.0001958,2]
[360153300,1746579038176,-450.0,0.0001958,2]
[360153301,1746579038188,-611.95263335,0.0001958,2]
[360153302,1746579038200,-465.15736665,0.0001958,2]
[360153303,1746579038210,-259.84263305,0.0001958,2]
[360153304,1746579038237,-509.89736695,0.0001958,2]
[360153305,1746579038247,-450.0,0.0001958,2]
[360153306,1746579038256,-450.0,0.0001958,2]
[360153307,1746579038266,-450.0,0.0001958,2]
[360153308,1746579038276,-450.0,0.0001958,2]
[360153309,1746579038285,-480.80763731,0.0001958,2]
[360153310,1746579038295,-781.53,0.0001958,2]
[360153311,1746579038305,-357.24998354,0.0001958,2]
[360153312,1746579038316,-92.75001646,0.0001958,2]
[360153313,1746579038326,-553.68639631,0.0001958,2]
[360153314,1746579038335,-450.0,0.0001958,2]
[360153315,1746579038344,-450.0,0.0001958,2]
[360153316,1746579038354,-450.0,0.0001958,2]
[360153317,1746579038364,-450.0,0.0001958,2]
[360153318,1746579038373,-450.0,0.0001958,2]
[360153319,1746579038383,-450.0,0.0001958,2]
[360153320,1746579038392,-450.0,0.0001958,2]
[360153321,1746579038402,-478.52681928,0.0001958,2]
[360153322,1746579038412,-450.0,0.0001958,2]
[360153323,1746579038421,-450.0,0.0001958,2]
[360153324,1746579038431,-235.25419526,0.0001958,2]
[360153325,1746579038440,-481.06,0.0001958,2]
[360153326,1746579038449,-450.0,0.0001958,2]
[360153327,1746579038459,-450.0,0.0001958,2]
[360153328,1746579038468,-468.84926508,0.0001958,2]
[360153329,1746579038486,-320.01303806,0.0001958,2]
[360153346,1746579040233,-450.0,0.00019579,2]
[360153348,1746579040245,-580.81769686,0.0001958,2]
[360153350,1746579040255,-1225.82,0.0001958,2]
[360153353,1746579040264,-450.0,0.0001958,2]
[360153355,1746579040274,-450.0,0.0001958,2]
[360153357,1746579040283,-450.0,0.0001958,2]
[360153359,1746579040292,-1676.28,0.0001958,2]
[360153361,1746579040301,-450.0,0.0001958,2]
[360153363,1746579040309,-450.0,0.0001958,2]
[360153365,1746579040318,-450.0,0.0001958,2]
[360153367,1746579040327,-487.55,0.0001958,2]
[360153369,1746579040336,-250.0,0.0001958,2]
[360153371,1746579040345,-250.0,0.0001958,2]
[360153373,1746579040355,-546.58297789,0.0001958,2]
[360153375,1746579040364,-2152.83,0.0001958,2]
[360153377,1746579040373,-1732.79,0.0001958,2]
[360153379,1746579040382,-1732.79,0.0001958,2]
[360153381,1746579040391,-499.51788771,0.0001958,2]
[360153383,1746579040400,-612.64,0.0001958,2]
[360153385,1746579040410,-450.0,0.0001958,2]
[360153387,1746579040419,-573.91223287,0.0001958,2]
[360153389,1746579040428,-450.0,0.0001958,2]
[360153391,1746579040437,-450.0,0.0001958,2]
[360153393,1746579040446,-450.0,0.0001958,2]
[360153395,1746579040456,-450.0,0.0001958,2]
[360153397,1746579040465,-162.96537,0.0001958,2]
[360153399,1746579040474,-450.0,0.0001958,2]
[360153401,1746579040483,-450.0,0.0001958,2]
[360153403,1746579040492,-484.48851926,0.0001958,2]
[360153405,1746579040501,-450.0,0.0001958,2]
[360153407,1746579040510,-450.0,0.0001958,2]
[360153409,1746579040519,-1271.21,0.0001958,2]
[360153411,1746579040529,-5423.292545,0.0001958,2]
[360153413,1746579040538,-5423.292545,0.0001958,2]
[360153415,1746579040547,-1873.5,0.0001958,2]
[360153417,1746579040556,-1200.22,0.0001958,2]
[360153419,1746579040565,-450.0,0.0001958,2]
[360153421,1746579040575,-450.0,0.0001958,2]
[360153423,1746579040584,-450.0,0.0001958,2]
[360153425,1746579040593,-450.0,0.0001958,2]
[360153427,1746579040603,-450.0,0.0001958,2]
[360153429,1746579040612,-493.05979396,0.0001958,2]
[360153430,1746579040621,-720.35,0.0001958,2]
[360153431,1746579040630,-720.35,0.0001958,2]
[360153432,1746579040640,-450.0,0.0001958,2]
[360153433,1746579040649,-450.0,0.0001958,2]
[360153434,1746579040659,-11357.125725,0.0001958,2]
[360153435,1746579040668,-1572.33,0.0001958,2]
[360153436,1746579040678,-11357.125725,0.0001958,2]
[360153437,1746579040687,-450.0,0.0001958,2]
[360153438,1746579040697,-450.0,0.0001958,2]
[360153439,1746579040708,-450.0,0.0001958,2]
[360153440,1746579040717,-666.11,0.0001958,2]
[360153441,1746579040727,-450.0,0.0001958,2]
[360153442,1746579040736,-450.0,0.0001958,2]
[360153443,1746579040745,-450.0,0.0001958,2]
[360153444,1746579040755,-450.0,0.0001958,2]
[360153445,1746579040765,-450.0,0.0001958,2]
[360153446,1746579040774,-450.0,0.0001958,2]
[360153447,1746579040783,-450.0,0.0001958,2]
[360153448,1746579040801,-2504.18,0.0001958,2]
[360153449,1746579040812,-2504.18,0.0001958,2]
[360153450,1746579040822,-526.05923528,0.0001958,2]
[360153451,1746579040832,-450.0,0.0001958,2]
[360153452,1746579040841,-450.0,0.0001958,2]
[360153453,1746579041013,-450.0,0.0001958,2]
[360153454,1746579041022,-450.0,0.0001958,2]
[360153455,1746579041032,-507.7425488,0.0001958,2]
[360153456,1746579041041,-450.0,0.0001958,2]
[360153457,1746579041051,-450.0,0.0001958,2]
[360153458,1746579041063,-450.0,0.0001958,2]
[360153459,1746579041073,-651.91,0.0001958,2]
[360153460,1746579041082,-450.0,0.0001958,2]
[360153461,1746579041093,-450.0,0.0001958,2]
[360153462,1746579041103,-450.0,0.0001958,2]
[360153463,1746579041112,-450.0,0.0001958,2]
[360153464,1746579041121,-517.66126788,0.0001958,2]
[360153465,1746579041130,-450.0,0.0001958,2]
[360153466,1746579041141,-529.05300677,0.0001958,2]
[360153467,1746579041151,-450.0,0.0001958,2]
[360153468,1746579041161,-1381.52,0.0001958,2]
[360153469,1746579041171,-450.0,0.0001958,2]
[360153470,1746579041180,-178.54386049,0.0001958,2]
[360153471,1746579041189,-572.67,0.0001958,2]
[360153472,1746579041199,-450.0,0.0001958,2]
[360153473,1746579041208,-450.0,0.0001958,2]
[360153474,1746579041218,-794.1,0.0001958,2]
[360153475,1746579041228,-460.35614334,0.0001958,2]
[360153476,1746579041237,-450.0,0.0001958,2]
[360153477,1746579041246,-450.0,0.0001958,2]
[360153478,1746579041256,-951.54,0.0001958,2]
[360153479,1746579041266,-450.0,0.0001958,2]
[360153480,1746579041276,-514.16,0.0001958,2]
[360153481,1746579041285,-561.53019206,0.0001958,2]
[360153482,1746579041295,-38407.09,0.0001958,2]
[360153483,1746579041304,-1084.99,0.0001958,2]
[360153484,1746579041313,-784.84,0.0001958,2]
[360153485,1746579041323,-450.0,0.0001958,2]
[360153486,1746579041333,-450.0,0.0001958,2]
[360153487,1746579041342,-190.85594031,0.0001958,2]
[360153488,1746579041351,-183.63008204,0.0001958,2]
[360153489,1746579041361,-587.34,0.0001958,2]
[360153490,1746579041370,-450.0,0.0001958,2]
[360153491,1746579041380,-475.34659839,0.0001958,2]
[360153492,1746579041389,-450.0,0.0001958,2]
[360153493,1746579041399,-450.0,0.0001958,2]
[360153494,1746579041408,-450.0,0.0001958,2]
[360153495,1746579041418,-450.0,0.0001958,2]
[360153496,1746579041427,-450.0,0.0001958,2]
[360153497,1746579041437,-450.0,0.0001958,2]
[360153498,1746579041446,-450.0,0.0001958,2]
[360153499,1746579041456,-450.0,0.0001958,2]
[360153500,1746579041466,-515.22,0.0001958,2]
[360153501,1746579041475,-450.0,0.0001958,2]
[360153502,1746579041484,-450.0,0.0001958,2]
[360153503,1746579041493,-2122.8,0.0001958,2]
[360153504,1746579041502,-450.0,0.0001958,2]
[360153505,1746579041511,-450.0,0.0001958,2]
[360153506,1746579041522,-490.0,0.0001958,2]
[360153507,1746579041531,-450.0,0.0001958,2]
[360153508,1746579041541,-450.0,0.0001958,2]
[360153509,1746579041552,-450.0,0.0001958,2]
[360153510,1746579041561,-450.0,0.0001958,2]
[360153511,1746579041570,-450.0,0.0001958,2]
[360153512,1746579041579,-470.0,0.0001958,2]
[360153513,1746579041589,-450.0,0.0001958,2]
[360153514,1746579041600,-551.9,0.0001958,2]
[360153515,1746579041610,-551.9,0.0001958,2]
[360153516,1746579041619,-450.0,0.0001958,2]
[360153517,1746579041631,-500.0,0.0001958,2]
[360153518,1746579041640,-254.27976021,0.0001958,2]
[360153519,1746579041651,-450.0,0.0001958,2]
[360153520,1746579041660,-450.0,0.0001958,2]
[360153521,1746579041669,-450.0,0.0001958,2]
[360153522,1746579041678,-550.0,0.0001958,2]
[360153523,1746579041688,-450.0,0.0001958,2]
[360153524,1746579041697,-450.0,0.0001958,2]
[360153525,1746579041706,-640.74,0.0001958,2]
[360153526,1746579041715,-450.0,0.0001958,2]
[360153527,1746579041724,-491.98,0.0001958,2]
[360153528,1746579041733,-450.0,0.0001958,2]
[360153529,1746579041742,-450.0,0.0001958,2]
[360153530,1746579041751,-450.0,0.0001958,2]
[360153531,1746579041760,-450.0,0.0001958,2]
[360153532,1746579041769,-450.0,0.0001958,2]
[360153533,1746579041778,-450.0,0.0001958,2]
[360153534,1746579041787,-502.65021227,0.0001958,2]
[360153535,1746579041797,-1095.8,0.0001958,2]
[360153536,1746579041810,-1095.8,0.0001958,2]
[360153537,1746579041820,-450.0,0.0001958,2]
[360153538,1746579041829,-450.0,0.0001958,2]
[360153539,1746579041838,-450.0,0.0001958,2]
[360153540,1746579041849,-450.0,0.0001958,2]
[360153541,1746579041859,-450.0,0.0001958,2]
[360153542,1746579041869,-450.0,0.0001958,2]
[360153543,1746579041879,-450.0,0.0001958,2]
[360153544,1746579041889,-450.0,0.0001958,2]
[360153545,1746579041898,-450.0,0.0001958,2]
[360153546,1746579041908,-450.0,0.0001958,2]
[360153547,1746579041917,-450.0,0.0001958,2]
[360153548,1746579041927,-450.0,0.0001958,2]
[360153549,1746579041936,-651.12,0.0001958,2]
[360153550,1746579041945,-568.22,0.0001958,2]
[360153551,1746579041956,-651.12,0.0001958,2]
[360153552,1746579041965,-568.22,0.0001958,2]
[360153553,1746579041974,-476.41,0.0001958,2]
[360153554,1746579041984,-450.0,0.0001958,2]
[360153555,1746579041994,-450.0,0.0001958,2]
[360153556,1746579042004,-531.45327096,0.0001958,2]
[360153557,1746579042014,-2013.65,0.0001958,2]
[360153558,1746579042024,-450.0,0.0001958,2]
[360153559,1746579042033,-450.0,0.0001958,2]
[360153560,1746579042043,-450.0,0.0001958,2]
[360153561,1746579042052,-450.0,0.0001958,2]
[360153562,1746579042065,-450.0,0.0001958,2]
[360153563,1746579042075,-2031.26,0.0001958,2]
[360153564,1746579042085,-450.0,0.0001958,2]
[360153565,1746579042093,-450.0,0.0001958,2]
[360153566,1746579042102,-450.0,0.0001958,2]
[360153567,1746579042115,-450.0,0.0001958,2]
[360153568,1746579042124,-450.0,0.0001958,2]
[360153569,1746579042134,-450.0,0.0001958,2]
[360153570,1746579042145,-450.0,0.0001958,2]
[360153571,1746579042154,-739.46,0.0001958,2]
[360153572,1746579042164,-450.0,0.0001958,2]
[360153573,1746579042173,-450.0,0.0001958,2]
[360153574,1746579042182,-450.0,0.0001958,2]
[360153575,1746579042192,-2005.96,0.0001958,2]
[360153576,1746579042202,-2005.96,0.0001958,2]
[360153577,1746579042213,-470.0,0.0001958,2]
[360153578,1746579042223,-450.0,0.0001958,2]
[360153579,1746579042233,-450.0,0.0001958,2]
[360153580,1746579042243,-514.46973085,0.0001958,2]
[360153581,1746579042252,-609.25,0.0001958,2]
[360153582,1746579042261,-1736.86,0.0001958,2]
[360153583,1746579042271,-1736.86,0.0001958,2]
[360153584,1746579042280,-326.93179485,0.0001958,2]
[360153585,1746579042290,-450.0,0.0001958,2]
[360153586,1746579042299,-450.0,0.0001958,2]